{"text_format":"3","workbook":"xlsx","n_sheets":3,"sheets":["Dati sui lead","Vendite previste ","Previsione mensile ponderata"],"not_rendered":{"charts":1,"images":2,"defined_names":9},"read":"whole","date_system":"1900"}

{"sheet":"Dati sui lead","index":0,"n_rows":10,"n_cols":10,"rows_kept":10,"merged":[[2,1,2,2],[3,4,3,8],[4,1,4,8]]}
[]
[]
[null,"Registro lead dettagliato"]
[null,{"$f":"TODAY()","v":"2019-10-18"}]
[null,"Nome società\t\t\t\t\t\t\t\t\t\t",{"$nulls":7},"RISERVATO"]
[null,"Nome del lead","Contatto lead","Lead \nOrigine","Regione del \nlead","di lead \nTipo","Opportunità potenziale","Probabilità \ndi vendita","Previsione \nChiusura","Ponderata \nPrevisione"]
[null,"Adatum Corporation",null,"Sito Web","Nord","Strategico",{"v":300000,"d":"€ 300,000.00"},{"v":0.9,"d":"90%"},"Gennaio",{"$f":"IFERROR(IF(DatiLead[[#This Row],[Probabilità \ndi vendita]]<>\"\",DatiLead[[#This Row],[Probabilità \ndi vendita]]*DatiLead[[#This Row],[Opportunità potenziale]],\"\"),\"\")","v":{"v":270000,"d":"€ 270,000.00"}}]
[null,"Adventure Works",null,"Evento di networking","Sud","Strategico",{"v":200000,"d":"€ 200,000.00"},{"v":0.1,"d":"10%"},"Febbraio",{"$f":"IFERROR(IF(DatiLead[[#This Row],[Probabilità \ndi vendita]]<>\"\",DatiLead[[#This Row],[Probabilità \ndi vendita]]*DatiLead[[#This Row],[Opportunità potenziale]],\"\"),\"\")","v":{"v":20000,"d":"€ 20,000.00"}}]
[null,"Alpine Ski House",null,"Evento di networking","Nord","Tattico",{"v":100000,"d":"€ 100,000.00"},{"v":0.2,"d":"20%"},"Marzo",{"$f":"IFERROR(IF(DatiLead[[#This Row],[Probabilità \ndi vendita]]<>\"\",DatiLead[[#This Row],[Probabilità \ndi vendita]]*DatiLead[[#This Row],[Opportunità potenziale]],\"\"),\"\")","v":{"v":20000,"d":"€ 20,000.00"}}]
[null,"Totale",{"$nulls":4},{"$f":"SUBTOTAL(109,DatiLead[Opportunità potenziale])","v":{"v":600000,"d":"€ 600,000.00"}},null,null,{"$f":"SUBTOTAL(109,DatiLead[Ponderata \nPrevisione])","v":{"v":310000,"d":"€ 310,000.00"}}]

{"sheet":"Vendite previste ","index":1,"n_rows":15,"n_cols":14,"rows_kept":15,"merged":[[0,5,0,9],[2,1,2,2],[4,1,4,11],[4,12,4,13]]}
[]
[]
[null,"Vendite previste"]
[null,{"$f":"DataRegistrazione","v":"2019-10-18"}]
[null,{"$f":"'Dati sui lead'!B5:I5","v":"Nome società\t\t\t\t\t\t\t\t\t\t"},{"$nulls":10},"RISERVATO"]
[null,"Nome del lead","Gennaio \nPrevisione","Febbraio \nPrevisione","Marzo \nPrevisione","Aprile \nPrevisione","Maggio \nPrevisione","Giugno \nPrevisione","luglio Previsione ","Agosto \nPrevisione","Settembre \nPrevisione","Ottobre \nPrevisione","Novembre \nPrevisione","Dicembre \nPrevisione"]
[null,{"$f":"IFERROR(IF(AND(DatiLead[[#This Row],[Nome del lead]] <> \"\", ROW(VenditePreviste[Nome del lead])<>UltimoElemento),DatiLead[Nome del lead], \"\"),\"\")","v":"Adatum Corporation"},{"$f":"IFERROR(IF(DatiLead[[#This Row],[Previsione \nChiusura]] <>\"\",IF(DatiLead[[#This Row],[Previsione \nChiusura]] = \"Gennaio\",DatiLead[Ponderata \nPrevisione],0),\"\"),\"\")","v":{"v":270000,"d":"€ 270,000"}},{"$f":"IFERROR(IF(DatiLead[[#This Row],[Previsione \nChiusura]] <>\"\",IF(DatiLead[[#This Row],[Previsione \nChiusura]] = \"Febbraio\",DatiLead[Ponderata \nPrevisione],0),\"\"),\"\")","v":{"v":0,"d":"€ 0"}},{"$f":"IFERROR(IF(DatiLead[[#This Row],[Previsione \nChiusura]] <>\"\",IF(DatiLead[[#This Row],[Previsione \nChiusura]] = \"Marzo\",DatiLead[Ponderata \nPrevisione],0),\"\"),\"\")","v":{"v":0,"d":"€ 0"}},{"$f":"IFERROR(IF(DatiLead[[#This Row],[Previsione \nChiusura]] <>\"\",IF(DatiLead[[#This Row],[Previsione \nChiusura]] = \"Aprile\",DatiLead[Ponderata \nPrevisione],0),\"\"),\"\")","v":{"v":0,"d":"€ 0"}},{"$f":"IFERROR(IF(DatiLead[[#This Row],[Previsione \nChiusura]] <>\"\",IF(DatiLead[[#This Row],[Previsione \nChiusura]] = \"Maggio\",DatiLead[Ponderata \nPrevisione],0),\"\"),\"\")","v":{"v":0,"d":"€ 0"}},{"$f":"IFERROR(IF(DatiLead[[#This Row],[Previsione \nChiusura]] <>\"\",IF(DatiLead[[#This Row],[Previsione \nChiusura]] = \"Giugno\",DatiLead[Ponderata \nPrevisione],0),\"\"),\"\")","v":{"v":0,"d":"€ 0"}},{"$f":"IFERROR(IF(DatiLead[[#This Row],[Previsione \nChiusura]] <>\"\",IF(DatiLead[[#This Row],[Previsione \nChiusura]] = \"Previsione\",DatiLead[Ponderata \nPrevisione],0),\"\"),\"\")","v":{"v":0,"d":"€ 0"}},{"$f":"IFERROR(IF(DatiLead[[#This Row],[Previsione \nChiusura]] <>\"\",IF(DatiLead[[#This Row],[Previsione \nChiusura]] = \"Agosto\",DatiLead[Ponderata \nPrevisione],0),\"\"),\"\")","v":{"v":0,"d":"€ 0"}},{"$f":"IFERROR(IF(DatiLead[[#This Row],[Previsione \nChiusura]] <>\"\",IF(DatiLead[[#This Row],[Previsione \nChiusura]] = \"Settembre\",DatiLead[Ponderata \nPrevisione],0),\"\"),\"\")","v":{"v":0,"d":"€ 0"}},{"$f":"IFERROR(IF(DatiLead[[#This Row],[Previsione \nChiusura]] <>\"\",IF(DatiLead[[#This Row],[Previsione \nChiusura]] = \"Ottobre\",DatiLead[Ponderata \nPrevisione],0),\"\"),\"\")","v":{"v":0,"d":"€ 0"}},{"$f":"IFERROR(IF(DatiLead[[#This Row],[Previsione \nChiusura]] <>\"\",IF(DatiLead[[#This Row],[Previsione \nChiusura]] = \"Novembre\",DatiLead[Ponderata \nPrevisione],0),\"\"),\"\")","v":{"v":0,"d":"€ 0"}},{"$f":"IFERROR(IF(DatiLead[[#This Row],[Previsione \nChiusura]] <>\"\",IF(DatiLead[[#This Row],[Previsione \nChiusura]] = \"Dicembre\",DatiLead[Ponderata \nPrevisione],0),\"\"),\"\")","v":{"v":0,"d":"€ 0"}}]
[null,{"$f":"IFERROR(IF(AND(DatiLead[[#This Row],[Nome del lead]] <> \"\", ROW(VenditePreviste[Nome del lead])<>UltimoElemento),DatiLead[Nome del lead], \"\"),\"\")","v":"Adventure Works"},{"$f":"IFERROR(IF(DatiLead[[#This Row],[Previsione \nChiusura]] <>\"\",IF(DatiLead[[#This Row],[Previsione \nChiusura]] = \"Gennaio\",DatiLead[Ponderata \nPrevisione],0),\"\"),\"\")","v":{"v":0,"d":"€ 0"}},{"$f":"IFERROR(IF(DatiLead[[#This Row],[Previsione \nChiusura]] <>\"\",IF(DatiLead[[#This Row],[Previsione \nChiusura]] = \"Febbraio\",DatiLead[Ponderata \nPrevisione],0),\"\"),\"\")","v":{"v":20000,"d":"€ 20,000"}},{"$f":"IFERROR(IF(DatiLead[[#This Row],[Previsione \nChiusura]] <>\"\",IF(DatiLead[[#This Row],[Previsione \nChiusura]] = \"Marzo\",DatiLead[Ponderata \nPrevisione],0),\"\"),\"\")","v":{"v":0,"d":"€ 0"}},{"$f":"IFERROR(IF(DatiLead[[#This Row],[Previsione \nChiusura]] <>\"\",IF(DatiLead[[#This Row],[Previsione \nChiusura]] = \"Aprile\",DatiLead[Ponderata \nPrevisione],0),\"\"),\"\")","v":{"v":0,"d":"€ 0"}},{"$f":"IFERROR(IF(DatiLead[[#This Row],[Previsione \nChiusura]] <>\"\",IF(DatiLead[[#This Row],[Previsione \nChiusura]] = \"Maggio\",DatiLead[Ponderata \nPrevisione],0),\"\"),\"\")","v":{"v":0,"d":"€ 0"}},{"$f":"IFERROR(IF(DatiLead[[#This Row],[Previsione \nChiusura]] <>\"\",IF(DatiLead[[#This Row],[Previsione \nChiusura]] = \"Giugno\",DatiLead[Ponderata \nPrevisione],0),\"\"),\"\")","v":{"v":0,"d":"€ 0"}},{"$f":"IFERROR(IF(DatiLead[[#This Row],[Previsione \nChiusura]] <>\"\",IF(DatiLead[[#This Row],[Previsione \nChiusura]] = \"Previsione\",DatiLead[Ponderata \nPrevisione],0),\"\"),\"\")","v":{"v":0,"d":"€ 0"}},{"$f":"IFERROR(IF(DatiLead[[#This Row],[Previsione \nChiusura]] <>\"\",IF(DatiLead[[#This Row],[Previsione \nChiusura]] = \"Agosto\",DatiLead[Ponderata \nPrevisione],0),\"\"),\"\")","v":{"v":0,"d":"€ 0"}},{"$f":"IFERROR(IF(DatiLead[[#This Row],[Previsione \nChiusura]] <>\"\",IF(DatiLead[[#This Row],[Previsione \nChiusura]] = \"Settembre\",DatiLead[Ponderata \nPrevisione],0),\"\"),\"\")","v":{"v":0,"d":"€ 0"}},{"$f":"IFERROR(IF(DatiLead[[#This Row],[Previsione \nChiusura]] <>\"\",IF(DatiLead[[#This Row],[Previsione \nChiusura]] = \"Ottobre\",DatiLead[Ponderata \nPrevisione],0),\"\"),\"\")","v":{"v":0,"d":"€ 0"}},{"$f":"IFERROR(IF(DatiLead[[#This Row],[Previsione \nChiusura]] <>\"\",IF(DatiLead[[#This Row],[Previsione \nChiusura]] = \"Novembre\",DatiLead[Ponderata \nPrevisione],0),\"\"),\"\")","v":{"v":0,"d":"€ 0"}},{"$f":"IFERROR(IF(DatiLead[[#This Row],[Previsione \nChiusura]] <>\"\",IF(DatiLead[[#This Row],[Previsione \nChiusura]] = \"Dicembre\",DatiLead[Ponderata \nPrevisione],0),\"\"),\"\")","v":{"v":0,"d":"€ 0"}}]
[null,{"$f":"IFERROR(IF(AND(DatiLead[[#This Row],[Nome del lead]] <> \"\", ROW(VenditePreviste[Nome del lead])<>UltimoElemento),DatiLead[Nome del lead], \"\"),\"\")","v":"Alpine Ski House"},{"$f":"IFERROR(IF(DatiLead[[#This Row],[Previsione \nChiusura]] <>\"\",IF(DatiLead[[#This Row],[Previsione \nChiusura]] = \"Gennaio\",DatiLead[Ponderata \nPrevisione],0),\"\"),\"\")","v":{"v":0,"d":"€ 0"}},{"$f":"IFERROR(IF(DatiLead[[#This Row],[Previsione \nChiusura]] <>\"\",IF(DatiLead[[#This Row],[Previsione \nChiusura]] = \"Febbraio\",DatiLead[Ponderata \nPrevisione],0),\"\"),\"\")","v":{"v":0,"d":"€ 0"}},{"$f":"IFERROR(IF(DatiLead[[#This Row],[Previsione \nChiusura]] <>\"\",IF(DatiLead[[#This Row],[Previsione \nChiusura]] = \"Marzo\",DatiLead[Ponderata \nPrevisione],0),\"\"),\"\")","v":{"v":20000,"d":"€ 20,000"}},{"$f":"IFERROR(IF(DatiLead[[#This Row],[Previsione \nChiusura]] <>\"\",IF(DatiLead[[#This Row],[Previsione \nChiusura]] = \"Aprile\",DatiLead[Ponderata \nPrevisione],0),\"\"),\"\")","v":{"v":0,"d":"€ 0"}},{"$f":"IFERROR(IF(DatiLead[[#This Row],[Previsione \nChiusura]] <>\"\",IF(DatiLead[[#This Row],[Previsione \nChiusura]] = \"Maggio\",DatiLead[Ponderata \nPrevisione],0),\"\"),\"\")","v":{"v":0,"d":"€ 0"}},{"$f":"IFERROR(IF(DatiLead[[#This Row],[Previsione \nChiusura]] <>\"\",IF(DatiLead[[#This Row],[Previsione \nChiusura]] = \"Giugno\",DatiLead[Ponderata \nPrevisione],0),\"\"),\"\")","v":{"v":0,"d":"€ 0"}},{"$f":"IFERROR(IF(DatiLead[[#This Row],[Previsione \nChiusura]] <>\"\",IF(DatiLead[[#This Row],[Previsione \nChiusura]] = \"Previsione\",DatiLead[Ponderata \nPrevisione],0),\"\"),\"\")","v":{"v":0,"d":"€ 0"}},{"$f":"IFERROR(IF(DatiLead[[#This Row],[Previsione \nChiusura]] <>\"\",IF(DatiLead[[#This Row],[Previsione \nChiusura]] = \"Agosto\",DatiLead[Ponderata \nPrevisione],0),\"\"),\"\")","v":{"v":0,"d":"€ 0"}},{"$f":"IFERROR(IF(DatiLead[[#This Row],[Previsione \nChiusura]] <>\"\",IF(DatiLead[[#This Row],[Previsione \nChiusura]] = \"Settembre\",DatiLead[Ponderata \nPrevisione],0),\"\"),\"\")","v":{"v":0,"d":"€ 0"}},{"$f":"IFERROR(IF(DatiLead[[#This Row],[Previsione \nChiusura]] <>\"\",IF(DatiLead[[#This Row],[Previsione \nChiusura]] = \"Ottobre\",DatiLead[Ponderata \nPrevisione],0),\"\"),\"\")","v":{"v":0,"d":"€ 0"}},{"$f":"IFERROR(IF(DatiLead[[#This Row],[Previsione \nChiusura]] <>\"\",IF(DatiLead[[#This Row],[Previsione \nChiusura]] = \"Novembre\",DatiLead[Ponderata \nPrevisione],0),\"\"),\"\")","v":{"v":0,"d":"€ 0"}},{"$f":"IFERROR(IF(DatiLead[[#This Row],[Previsione \nChiusura]] <>\"\",IF(DatiLead[[#This Row],[Previsione \nChiusura]] = \"Dicembre\",DatiLead[Ponderata \nPrevisione],0),\"\"),\"\")","v":{"v":0,"d":"€ 0"}}]
[null,{"$f":"IFERROR(IF(AND(DatiLead[[#This Row],[Nome del lead]] <> \"\", ROW(VenditePreviste[Nome del lead])<>UltimoElemento),DatiLead[Nome del lead], \"\"),\"\")","v":""},{"$f":"IFERROR(IF(DatiLead[[#This Row],[Previsione \nChiusura]] <>\"\",IF(DatiLead[[#This Row],[Previsione \nChiusura]] = \"Gennaio\",DatiLead[Ponderata \nPrevisione],0),\"\"),\"\")","v":""},{"$f":"IFERROR(IF(DatiLead[[#This Row],[Previsione \nChiusura]] <>\"\",IF(DatiLead[[#This Row],[Previsione \nChiusura]] = \"Febbraio\",DatiLead[Ponderata \nPrevisione],0),\"\"),\"\")","v":""},{"$f":"IFERROR(IF(DatiLead[[#This Row],[Previsione \nChiusura]] <>\"\",IF(DatiLead[[#This Row],[Previsione \nChiusura]] = \"Marzo\",DatiLead[Ponderata \nPrevisione],0),\"\"),\"\")","v":""},{"$f":"IFERROR(IF(DatiLead[[#This Row],[Previsione \nChiusura]] <>\"\",IF(DatiLead[[#This Row],[Previsione \nChiusura]] = \"Aprile\",DatiLead[Ponderata \nPrevisione],0),\"\"),\"\")","v":""},{"$f":"IFERROR(IF(DatiLead[[#This Row],[Previsione \nChiusura]] <>\"\",IF(DatiLead[[#This Row],[Previsione \nChiusura]] = \"Maggio\",DatiLead[Ponderata \nPrevisione],0),\"\"),\"\")","v":""},{"$f":"IFERROR(IF(DatiLead[[#This Row],[Previsione \nChiusura]] <>\"\",IF(DatiLead[[#This Row],[Previsione \nChiusura]] = \"Giugno\",DatiLead[Ponderata \nPrevisione],0),\"\"),\"\")","v":""},{"$f":"IFERROR(IF(DatiLead[[#This Row],[Previsione \nChiusura]] <>\"\",IF(DatiLead[[#This Row],[Previsione \nChiusura]] = \"Previsione\",DatiLead[Ponderata \nPrevisione],0),\"\"),\"\")","v":""},{"$f":"IFERROR(IF(DatiLead[[#This Row],[Previsione \nChiusura]] <>\"\",IF(DatiLead[[#This Row],[Previsione \nChiusura]] = \"Agosto\",DatiLead[Ponderata \nPrevisione],0),\"\"),\"\")","v":""},{"$f":"IFERROR(IF(DatiLead[[#This Row],[Previsione \nChiusura]] <>\"\",IF(DatiLead[[#This Row],[Previsione \nChiusura]] = \"Settembre\",DatiLead[Ponderata \nPrevisione],0),\"\"),\"\")","v":""},{"$f":"IFERROR(IF(DatiLead[[#This Row],[Previsione \nChiusura]] <>\"\",IF(DatiLead[[#This Row],[Previsione \nChiusura]] = \"Ottobre\",DatiLead[Ponderata \nPrevisione],0),\"\"),\"\")","v":""},{"$f":"IFERROR(IF(DatiLead[[#This Row],[Previsione \nChiusura]] <>\"\",IF(DatiLead[[#This Row],[Previsione \nChiusura]] = \"Novembre\",DatiLead[Ponderata \nPrevisione],0),\"\"),\"\")","v":""},{"$f":"IFERROR(IF(DatiLead[[#This Row],[Previsione \nChiusura]] <>\"\",IF(DatiLead[[#This Row],[Previsione \nChiusura]] = \"Dicembre\",DatiLead[Ponderata \nPrevisione],0),\"\"),\"\")","v":""}]
[null,{"$f":"IFERROR(IF(AND(DatiLead[[#This Row],[Nome del lead]] <> \"\", ROW(VenditePreviste[Nome del lead])<>UltimoElemento),DatiLead[Nome del lead], \"\"),\"\")","v":""},{"$f":"IFERROR(IF(DatiLead[[#This Row],[Previsione \nChiusura]] <>\"\",IF(DatiLead[[#This Row],[Previsione \nChiusura]] = \"Gennaio\",DatiLead[Ponderata \nPrevisione],0),\"\"),\"\")","v":""},{"$f":"IFERROR(IF(DatiLead[[#This Row],[Previsione \nChiusura]] <>\"\",IF(DatiLead[[#This Row],[Previsione \nChiusura]] = \"Febbraio\",DatiLead[Ponderata \nPrevisione],0),\"\"),\"\")","v":""},{"$f":"IFERROR(IF(DatiLead[[#This Row],[Previsione \nChiusura]] <>\"\",IF(DatiLead[[#This Row],[Previsione \nChiusura]] = \"Marzo\",DatiLead[Ponderata \nPrevisione],0),\"\"),\"\")","v":""},{"$f":"IFERROR(IF(DatiLead[[#This Row],[Previsione \nChiusura]] <>\"\",IF(DatiLead[[#This Row],[Previsione \nChiusura]] = \"Aprile\",DatiLead[Ponderata \nPrevisione],0),\"\"),\"\")","v":""},{"$f":"IFERROR(IF(DatiLead[[#This Row],[Previsione \nChiusura]] <>\"\",IF(DatiLead[[#This Row],[Previsione \nChiusura]] = \"Maggio\",DatiLead[Ponderata \nPrevisione],0),\"\"),\"\")","v":""},{"$f":"IFERROR(IF(DatiLead[[#This Row],[Previsione \nChiusura]] <>\"\",IF(DatiLead[[#This Row],[Previsione \nChiusura]] = \"Giugno\",DatiLead[Ponderata \nPrevisione],0),\"\"),\"\")","v":""},{"$f":"IFERROR(IF(DatiLead[[#This Row],[Previsione \nChiusura]] <>\"\",IF(DatiLead[[#This Row],[Previsione \nChiusura]] = \"Previsione\",DatiLead[Ponderata \nPrevisione],0),\"\"),\"\")","v":""},{"$f":"IFERROR(IF(DatiLead[[#This Row],[Previsione \nChiusura]] <>\"\",IF(DatiLead[[#This Row],[Previsione \nChiusura]] = \"Agosto\",DatiLead[Ponderata \nPrevisione],0),\"\"),\"\")","v":""},{"$f":"IFERROR(IF(DatiLead[[#This Row],[Previsione \nChiusura]] <>\"\",IF(DatiLead[[#This Row],[Previsione \nChiusura]] = \"Settembre\",DatiLead[Ponderata \nPrevisione],0),\"\"),\"\")","v":""},{"$f":"IFERROR(IF(DatiLead[[#This Row],[Previsione \nChiusura]] <>\"\",IF(DatiLead[[#This Row],[Previsione \nChiusura]] = \"Ottobre\",DatiLead[Ponderata \nPrevisione],0),\"\"),\"\")","v":""},{"$f":"IFERROR(IF(DatiLead[[#This Row],[Previsione \nChiusura]] <>\"\",IF(DatiLead[[#This Row],[Previsione \nChiusura]] = \"Novembre\",DatiLead[Ponderata \nPrevisione],0),\"\"),\"\")","v":""},{"$f":"IFERROR(IF(DatiLead[[#This Row],[Previsione \nChiusura]] <>\"\",IF(DatiLead[[#This Row],[Previsione \nChiusura]] = \"Dicembre\",DatiLead[Ponderata \nPrevisione],0),\"\"),\"\")","v":""}]
[null,{"$f":"IFERROR(IF(AND(DatiLead[[#This Row],[Nome del lead]] <> \"\", ROW(VenditePreviste[Nome del lead])<>UltimoElemento),DatiLead[Nome del lead], \"\"),\"\")","v":""},{"$f":"IFERROR(IF(DatiLead[[#This Row],[Previsione \nChiusura]] <>\"\",IF(DatiLead[[#This Row],[Previsione \nChiusura]] = \"Gennaio\",DatiLead[Ponderata \nPrevisione],0),\"\"),\"\")","v":""},{"$f":"IFERROR(IF(DatiLead[[#This Row],[Previsione \nChiusura]] <>\"\",IF(DatiLead[[#This Row],[Previsione \nChiusura]] = \"Febbraio\",DatiLead[Ponderata \nPrevisione],0),\"\"),\"\")","v":""},{"$f":"IFERROR(IF(DatiLead[[#This Row],[Previsione \nChiusura]] <>\"\",IF(DatiLead[[#This Row],[Previsione \nChiusura]] = \"Marzo\",DatiLead[Ponderata \nPrevisione],0),\"\"),\"\")","v":""},{"$f":"IFERROR(IF(DatiLead[[#This Row],[Previsione \nChiusura]] <>\"\",IF(DatiLead[[#This Row],[Previsione \nChiusura]] = \"Aprile\",DatiLead[Ponderata \nPrevisione],0),\"\"),\"\")","v":""},{"$f":"IFERROR(IF(DatiLead[[#This Row],[Previsione \nChiusura]] <>\"\",IF(DatiLead[[#This Row],[Previsione \nChiusura]] = \"Maggio\",DatiLead[Ponderata \nPrevisione],0),\"\"),\"\")","v":""},{"$f":"IFERROR(IF(DatiLead[[#This Row],[Previsione \nChiusura]] <>\"\",IF(DatiLead[[#This Row],[Previsione \nChiusura]] = \"Giugno\",DatiLead[Ponderata \nPrevisione],0),\"\"),\"\")","v":""},{"$f":"IFERROR(IF(DatiLead[[#This Row],[Previsione \nChiusura]] <>\"\",IF(DatiLead[[#This Row],[Previsione \nChiusura]] = \"Previsione\",DatiLead[Ponderata \nPrevisione],0),\"\"),\"\")","v":""},{"$f":"IFERROR(IF(DatiLead[[#This Row],[Previsione \nChiusura]] <>\"\",IF(DatiLead[[#This Row],[Previsione \nChiusura]] = \"Agosto\",DatiLead[Ponderata \nPrevisione],0),\"\"),\"\")","v":""},{"$f":"IFERROR(IF(DatiLead[[#This Row],[Previsione \nChiusura]] <>\"\",IF(DatiLead[[#This Row],[Previsione \nChiusura]] = \"Settembre\",DatiLead[Ponderata \nPrevisione],0),\"\"),\"\")","v":""},{"$f":"IFERROR(IF(DatiLead[[#This Row],[Previsione \nChiusura]] <>\"\",IF(DatiLead[[#This Row],[Previsione \nChiusura]] = \"Ottobre\",DatiLead[Ponderata \nPrevisione],0),\"\"),\"\")","v":""},{"$f":"IFERROR(IF(DatiLead[[#This Row],[Previsione \nChiusura]] <>\"\",IF(DatiLead[[#This Row],[Previsione \nChiusura]] = \"Novembre\",DatiLead[Ponderata \nPrevisione],0),\"\"),\"\")","v":""},{"$f":"IFERROR(IF(DatiLead[[#This Row],[Previsione \nChiusura]] <>\"\",IF(DatiLead[[#This Row],[Previsione \nChiusura]] = \"Dicembre\",DatiLead[Ponderata \nPrevisione],0),\"\"),\"\")","v":""}]
[null,{"$f":"IFERROR(IF(AND(DatiLead[[#This Row],[Nome del lead]] <> \"\", ROW(VenditePreviste[Nome del lead])<>UltimoElemento),DatiLead[Nome del lead], \"\"),\"\")","v":""},{"$f":"IFERROR(IF(DatiLead[[#This Row],[Previsione \nChiusura]] <>\"\",IF(DatiLead[[#This Row],[Previsione \nChiusura]] = \"Gennaio\",DatiLead[Ponderata \nPrevisione],0),\"\"),\"\")","v":""},{"$f":"IFERROR(IF(DatiLead[[#This Row],[Previsione \nChiusura]] <>\"\",IF(DatiLead[[#This Row],[Previsione \nChiusura]] = \"Febbraio\",DatiLead[Ponderata \nPrevisione],0),\"\"),\"\")","v":""},{"$f":"IFERROR(IF(DatiLead[[#This Row],[Previsione \nChiusura]] <>\"\",IF(DatiLead[[#This Row],[Previsione \nChiusura]] = \"Marzo\",DatiLead[Ponderata \nPrevisione],0),\"\"),\"\")","v":""},{"$f":"IFERROR(IF(DatiLead[[#This Row],[Previsione \nChiusura]] <>\"\",IF(DatiLead[[#This Row],[Previsione \nChiusura]] = \"Aprile\",DatiLead[Ponderata \nPrevisione],0),\"\"),\"\")","v":""},{"$f":"IFERROR(IF(DatiLead[[#This Row],[Previsione \nChiusura]] <>\"\",IF(DatiLead[[#This Row],[Previsione \nChiusura]] = \"Maggio\",DatiLead[Ponderata \nPrevisione],0),\"\"),\"\")","v":""},{"$f":"IFERROR(IF(DatiLead[[#This Row],[Previsione \nChiusura]] <>\"\",IF(DatiLead[[#This Row],[Previsione \nChiusura]] = \"Giugno\",DatiLead[Ponderata \nPrevisione],0),\"\"),\"\")","v":""},{"$f":"IFERROR(IF(DatiLead[[#This Row],[Previsione \nChiusura]] <>\"\",IF(DatiLead[[#This Row],[Previsione \nChiusura]] = \"Previsione\",DatiLead[Ponderata \nPrevisione],0),\"\"),\"\")","v":""},{"$f":"IFERROR(IF(DatiLead[[#This Row],[Previsione \nChiusura]] <>\"\",IF(DatiLead[[#This Row],[Previsione \nChiusura]] = \"Agosto\",DatiLead[Ponderata \nPrevisione],0),\"\"),\"\")","v":""},{"$f":"IFERROR(IF(DatiLead[[#This Row],[Previsione \nChiusura]] <>\"\",IF(DatiLead[[#This Row],[Previsione \nChiusura]] = \"Settembre\",DatiLead[Ponderata \nPrevisione],0),\"\"),\"\")","v":""},{"$f":"IFERROR(IF(DatiLead[[#This Row],[Previsione \nChiusura]] <>\"\",IF(DatiLead[[#This Row],[Previsione \nChiusura]] = \"Ottobre\",DatiLead[Ponderata \nPrevisione],0),\"\"),\"\")","v":""},{"$f":"IFERROR(IF(DatiLead[[#This Row],[Previsione \nChiusura]] <>\"\",IF(DatiLead[[#This Row],[Previsione \nChiusura]] = \"Novembre\",DatiLead[Ponderata \nPrevisione],0),\"\"),\"\")","v":""},{"$f":"IFERROR(IF(DatiLead[[#This Row],[Previsione \nChiusura]] <>\"\",IF(DatiLead[[#This Row],[Previsione \nChiusura]] = \"Dicembre\",DatiLead[Ponderata \nPrevisione],0),\"\"),\"\")","v":""}]
[null,"Totale",{"$f":"SUBTOTAL(109,VenditePreviste[Gennaio \nPrevisione])","v":{"v":270000,"d":"€ 270,000"}},{"$f":"SUBTOTAL(109,VenditePreviste[Febbraio \nPrevisione])","v":{"v":20000,"d":"€ 20,000"}},{"$f":"SUBTOTAL(109,VenditePreviste[Marzo \nPrevisione])","v":{"v":20000,"d":"€ 20,000"}},{"$f":"SUBTOTAL(109,VenditePreviste[Aprile \nPrevisione])","v":{"v":0,"d":"€ 0"}},{"$f":"SUBTOTAL(109,VenditePreviste[Maggio \nPrevisione])","v":{"v":0,"d":"€ 0"}},{"$f":"SUBTOTAL(109,VenditePreviste[Giugno \nPrevisione])","v":{"v":0,"d":"€ 0"}},{"$f":"SUBTOTAL(109,VenditePreviste[[luglio Previsione ]])","v":{"v":0,"d":"€ 0"}},{"$f":"SUBTOTAL(109,VenditePreviste[Agosto \nPrevisione])","v":{"v":0,"d":"€ 0"}},{"$f":"SUBTOTAL(109,VenditePreviste[Settembre \nPrevisione])","v":{"v":0,"d":"€ 0"}},{"$f":"SUBTOTAL(109,VenditePreviste[Ottobre \nPrevisione])","v":{"v":0,"d":"€ 0"}},{"$f":"SUBTOTAL(109,VenditePreviste[Novembre \nPrevisione])","v":{"v":0,"d":"€ 0"}},{"$f":"SUBTOTAL(109,VenditePreviste[Dicembre \nPrevisione])","v":{"v":0,"d":"€ 0"}}]
[null,"Totale cumulativo",{"$f":"C14","v":{"v":270000,"d":"€ 270,000"}},{"$f":"C15+D14","v":{"v":290000,"d":"€ 290,000"}},{"$f":"D15+E14","v":{"v":310000,"d":"€ 310,000"}},{"$f":"E15+F14","v":{"v":310000,"d":"€ 310,000"}},{"$f":"F15+G14","v":{"v":310000,"d":"€ 310,000"}},{"$f":"G15+H14","v":{"v":310000,"d":"€ 310,000"}},{"$f":"H15+I14","v":{"v":310000,"d":"€ 310,000"}},{"$f":"I15+J14","v":{"v":310000,"d":"€ 310,000"}},{"$f":"J15+K14","v":{"v":310000,"d":"€ 310,000"}},{"$f":"K15+L14","v":{"v":310000,"d":"€ 310,000"}},{"$f":"L15+M14","v":{"v":310000,"d":"€ 310,000"}},{"$f":"M15+N14","v":{"v":310000,"d":"€ 310,000"}}]

{"sheet":"Previsione mensile ponderata","index":2,"n_rows":3,"n_cols":2,"rows_kept":3,"merged":[[0,5,0,9]]}
[]
[]
[null,"Previsione mensile ponderata"]